[Event "Late-Titled-Tuesday-Blitz-January-23-2024"]
[Site "Chess.com"]
[Date "2024.01.23"]
[Round "1"]
[White "Zq1"]
[Black "js20000"]
[Result "0-1"]
[WhiteElo "2469"]
[BlackElo "2863"]
[TimeControl "180+1"]
[EndTime "14:04:23 PST"]
[Termination "js20000 won by resignation"]

1. d4 {[%clk 0:03:00.9]} 1... d5 {[%clk 0:03:00.3]} 2. c4 {[%clk 0:02:59.7]}
2... e6 {[%clk 0:03:00.9]} 3. Nc3 {[%clk 0:02:59.1]} 3... Nf6 {[%clk 0:03:01.5]}
4. Nf3 {[%clk 0:02:58.1]} 4... Be7 {[%clk 0:02:59.5]} 5. g3 {[%clk 0:02:56.7]}
5... dxc4 {[%clk 0:02:55.9]} 6. Bg2 {[%clk 0:02:56]} 6... O-O {[%clk 0:02:53.5]}
7. Ne5 {[%clk 0:02:55.5]} 7... c5 {[%clk 0:02:53.3]} 8. dxc5 {[%clk 0:02:53.6]}
8... Qc7 {[%clk 0:02:52]} 9. Nxc4 {[%clk 0:02:50.8]} 9... Qxc5 {[%clk
0:02:51.9]} 10. Qb3 {[%clk 0:02:46.6]} 10... Nc6 {[%clk 0:02:48.2]} 11. Be3
{[%clk 0:02:44.2]} 11... Nd4 {[%clk 0:02:46.7]} 12. Bxd4 {[%clk 0:02:43.9]}
12... Qxd4 {[%clk 0:02:47.6]} 13. O-O {[%clk 0:02:42.8]} 13... Qc5 {[%clk
0:02:39.6]} 14. Rac1 {[%clk 0:02:39.8]} 14... Qb4 {[%clk 0:02:39.4]} 15. Nb5
{[%clk 0:02:33]} 15... Qxb3 {[%clk 0:02:38.6]} 16. axb3 {[%clk 0:02:32.6]} 16...
a6 {[%clk 0:02:38.9]} 17. Nbd6 {[%clk 0:02:15]} 17... Rb8 {[%clk 0:02:38.3]} 18.
Rfd1 {[%clk 0:02:11.6]} 18... Rd8 {[%clk 0:02:30.6]} 19. Nb6 {[%clk 0:01:57]}
19... Bxd6 {[%clk 0:02:22.7]} 20. Nxc8 {[%clk 0:01:55.8]} 20... Rdxc8 {[%clk
0:02:11.8]} 21. Rxc8+ {[%clk 0:01:55.1]} 21... Rxc8 {[%clk 0:02:12.3]} 22. Rxd6
{[%clk 0:01:54.7]} 22... Rc1+ {[%clk 0:02:12]} 23. Bf1 {[%clk 0:01:54.6]} 23...
Kf8 {[%clk 0:02:11.6]} 24. Rb6 {[%clk 0:01:52]} 24... Ne4 {[%clk 0:02:11.1]} 25.
Kg2 {[%clk 0:01:34.8]} 25... Nd2 {[%clk 0:02:10.9]} 26. Rxb7 {[%clk 0:01:33.2]}
26... Rxf1 {[%clk 0:02:03.2]} 27. Rd7 {[%clk 0:01:31.9]} 27... Rd1 {[%clk
0:02:02.3]} 28. b4 {[%clk 0:01:30.7]} 28... Ke8 {[%clk 0:02:02.2]} 29. Rd3
{[%clk 0:01:27.8]} 29... Ke7 {[%clk 0:02:01.9]} 30. f4 {[%clk 0:01:26.3]} 30...
Nc4 {[%clk 0:02:01]} 31. Rc3 {[%clk 0:01:25]} 31... Nxb2 {[%clk 0:01:57.1]} 32.
Rc2 {[%clk 0:01:19.3]} 32... Na4 {[%clk 0:01:53.3]} 33. Ra2 {[%clk 0:01:18.1]}
33... Nc3 {[%clk 0:01:53.4]} 34. Rxa6 {[%clk 0:01:17.7]} 34... Nxe2 {[%clk
0:01:52.9]} 35. Ra7+ {[%clk 0:01:15.3]} 35... Rd7 {[%clk 0:01:51.9]} 0-1

[Event "Late-Titled-Tuesday-Blitz-January-23-2024"]
[Site "Chess.com"]
[Date "2024.01.23"]
[Round "1"]
[White "GHANDEEVAM2003"]
[Black "Maxfan2008"]
[Result "1-0"]
[WhiteElo "3055"]
[BlackElo "2530"]
[TimeControl "180+1"]
[EndTime "14:04:29 PST"]
[Termination "GHANDEEVAM2003 won by resignation"]

1. Nf3 {[%clk 0:03:00.9]} 1... Nf6 {[%clk 0:02:57.1]} 2. g3 {[%clk 0:03:00.4]}
2... e6 {[%clk 0:02:57.5]} 3. Bg2 {[%clk 0:03:00.3]} 3... d5 {[%clk 0:02:55.3]}
4. O-O {[%clk 0:03:00.4]} 4... Be7 {[%clk 0:02:55.8]} 5. d4 {[%clk 0:02:59.4]}
5... O-O {[%clk 0:02:56.4]} 6. c4 {[%clk 0:02:58.9]} 6... dxc4 {[%clk
0:02:56.9]} 7. Ne5 {[%clk 0:02:58]} 7... Nc6 {[%clk 0:02:56]} 8. Nxc6 {[%clk
0:02:57.7]} 8... bxc6 {[%clk 0:02:55.9]} 9. Na3 {[%clk 0:02:58.6]} 9... Bxa3
{[%clk 0:02:32.4]} 10. bxa3 {[%clk 0:02:59.5]} 10... Rb8 {[%clk 0:02:32.7]} 11.
Qa4 {[%clk 0:02:57.8]} 11... Rb6 {[%clk 0:02:28.2]} 12. Qxc4 {[%clk 0:02:53.5]}
12... Ba6 {[%clk 0:02:27.9]} 13. Qc2 {[%clk 0:02:52.5]} 13... Qd6 {[%clk
0:01:59]} 14. Rd1 {[%clk 0:02:42.7]} 14... Rd8 {[%clk 0:01:58.2]} 15. Bf4 {[%clk
0:02:40.4]} 15... Qd7 {[%clk 0:01:51.6]} 16. a4 {[%clk 0:02:37.4]} 16... Nd5
{[%clk 0:01:52]} 17. Bd2 {[%clk 0:02:34.2]} 17... Nb4 {[%clk 0:01:51.3]} 18.
Bxb4 {[%clk 0:02:32.6]} 18... Rxb4 {[%clk 0:01:51.2]} 19. Bxc6 {[%clk 0:02:33]}
19... Qd6 {[%clk 0:01:49.1]} 20. Bf3 {[%clk 0:02:16.9]} 20... Rdb8 {[%clk
0:01:45.3]} 21. Rac1 {[%clk 0:02:11.2]} 21... Bc4 {[%clk 0:01:33.6]} 22. a3
{[%clk 0:02:06.4]} 22... Bb3 {[%clk 0:01:28.8]} 23. Qxc7 {[%clk 0:02:06]} 23...
Qxc7 {[%clk 0:01:24.7]} 24. Rxc7 {[%clk 0:02:06.9]} 24... Bxd1 {[%clk
0:01:24.6]} 25. axb4 {[%clk 0:02:06.1]} 25... Bxa4 {[%clk 0:01:20.9]} 26. Rxa7
{[%clk 0:02:03.8]} 26... Bb5 {[%clk 0:01:21.3]} 27. e3 {[%clk 0:02:01]} 27... g5
{[%clk 0:01:21.2]} 28. Ra8 {[%clk 0:01:59.8]} 28... Rxa8 {[%clk 0:01:19.6]} 29.
Bxa8 {[%clk 0:02:00.7]} 29... f5 {[%clk 0:01:19.2]} 30. f4 {[%clk 0:01:50.5]}
30... Kf7 {[%clk 0:01:17.8]} 31. fxg5 {[%clk 0:01:49]} 31... Kg6 {[%clk
0:01:18]} 32. h4 {[%clk 0:01:48.6]} 1-0

[Event "Late-Titled-Tuesday-Blitz-January-23-2024"]
[Site "Chess.com"]
[Date "2024.01.23"]
[Round "1"]
[White "PawnEatingZombie"]
[Black "skoularikii"]
[Result "0-1"]
[WhiteElo "2103"]
[BlackElo "2558"]
[TimeControl "180+1"]
[EndTime "14:04:40 PST"]
[Termination "skoularikii won by resignation"]

1. e4 {[%clk 0:03:00.9]} 1... e5 {[%clk 0:03:00.1]} 2. Nf3 {[%clk 0:03:00.6]}
2... Nc6 {[%clk 0:03:00.6]} 3. Nc3 {[%clk 0:02:59.8]} 3... g6 {[%clk 0:02:55.4]}
4. d4 {[%clk 0:02:55.8]} 4... exd4 {[%clk 0:02:56.3]} 5. Nxd4 {[%clk 0:02:55.5]}
5... Bg7 {[%clk 0:02:57]} 6. Be3 {[%clk 0:02:53.3]} 6... Nge7 {[%clk 0:02:56.6]}
7. Nb3 {[%clk 0:02:46.3]} 7... d6 {[%clk 0:02:52.2]} 8. Qd2 {[%clk 0:02:45.8]}
8... a6 {[%clk 0:02:44.5]} 9. h4 {[%clk 0:02:42]} 9... h5 {[%clk 0:02:43.8]} 10.
Be2 {[%clk 0:02:37.3]} 10... Be6 {[%clk 0:02:42.4]} 11. f3 {[%clk 0:02:35.1]}
11... b5 {[%clk 0:02:39.8]} 12. O-O-O {[%clk 0:02:29.3]} 12... Kf8 {[%clk
0:01:57.6]} 13. Bg5 {[%clk 0:01:58.6]} 13... Qc8 {[%clk 0:01:53.1]} 14. Nd5
{[%clk 0:01:54.6]} 14... Bxd5 {[%clk 0:01:45.4]} 15. exd5 {[%clk 0:01:53.2]}
15... Ne5 {[%clk 0:01:46]} 16. f4 {[%clk 0:01:16.2]} 16... Nc4 {[%clk
0:01:41.8]} 17. Bxc4 {[%clk 0:01:13]} 17... bxc4 {[%clk 0:01:42.7]} 18. Bxe7+
{[%clk 0:01:12.9]} 18... Kxe7 {[%clk 0:01:43.5]} 19. Nd4 {[%clk 0:01:13]} 19...
Kf8 {[%clk 0:01:25.5]} 20. f5 {[%clk 0:01:07]} 20... Bh6 {[%clk 0:01:24.6]} 0-1

[Event "Late-Titled-Tuesday-Blitz-January-23-2024"]
[Site "Chess.com"]
[Date "2024.01.23"]
[Round "1"]
[White "dodoucb"]
[Black "GoltsevDmitry2000"]
[Result "0-1"]
[WhiteElo "2450"]
[BlackElo "2810"]
[TimeControl "180+1"]
[EndTime "14:04:45 PST"]
[Termination "GoltsevDmitry2000 won by resignation"]

1. d4 {[%clk 0:02:55.7]} 1... e6 {[%clk 0:02:58.2]} 2. c4 {[%clk 0:02:55.6]}
2... b6 {[%clk 0:02:58.1]} 3. Nf3 {[%clk 0:02:53.6]} 3... Bb7 {[%clk 0:02:57.4]}
4. a3 {[%clk 0:02:52.4]} 4... Nf6 {[%clk 0:02:57.9]} 5. Nc3 {[%clk 0:02:51.9]}
5... a5 {[%clk 0:02:56.1]} 6. Bg5 {[%clk 0:02:50.1]} 6... Be7 {[%clk 0:02:56]}
7. e3 {[%clk 0:02:48.9]} 7... h6 {[%clk 0:02:55.5]} 8. Bh4 {[%clk 0:02:48.3]}
8... Ne4 {[%clk 0:02:54.2]} 9. Bxe7 {[%clk 0:02:46.7]} 9... Qxe7 {[%clk
0:02:55.1]} 10. Qc2 {[%clk 0:02:46.6]} 10... Nxc3 {[%clk 0:02:51.5]} 11. Qxc3
{[%clk 0:02:47.5]} 11... d6 {[%clk 0:02:49.6]} 12. Be2 {[%clk 0:02:46.1]} 12...
Nd7 {[%clk 0:02:48.4]} 13. O-O {[%clk 0:02:45.6]} 13... Nf6 {[%clk 0:02:48.5]}
14. b4 {[%clk 0:02:45.2]} 14... axb4 {[%clk 0:02:46.8]} 15. axb4 {[%clk
0:02:44.9]} 15... O-O {[%clk 0:02:47.4]} 16. Nd2 {[%clk 0:02:39.5]} 16... e5
{[%clk 0:02:39.4]} 17. Rxa8 {[%clk 0:02:32.2]} 17... Rxa8 {[%clk 0:02:34.9]} 18.
Ra1 {[%clk 0:02:31.2]} 18... exd4 {[%clk 0:02:31.6]} 19. Rxa8+ {[%clk
0:02:30.2]} 19... Bxa8 {[%clk 0:02:32.5]} 20. Qxd4 {[%clk 0:02:30]} 20... Bb7
{[%clk 0:02:27.8]} 21. Bf3 {[%clk 0:02:17]} 21... Bxf3 {[%clk 0:02:17]} 22. Nxf3
{[%clk 0:02:15.1]} 22... Qe8 {[%clk 0:02:16.4]} 23. Qa1 {[%clk 0:01:02.5]} 23...
Qe4 {[%clk 0:02:10.1]} 24. Qc1 {[%clk 0:01:01.9]} 24... Qd3 {[%clk 0:02:07.5]}
25. Nd2 {[%clk 0:00:52.5]} 25... Qe2 {[%clk 0:02:02.8]} 26. h3 {[%clk
0:00:50.9]} 26... g5 {[%clk 0:01:52.6]} 27. Qc3 {[%clk 0:00:43.5]} 27... Qe1+
{[%clk 0:01:52.3]} 28. Nf1 {[%clk 0:00:38.2]} 28... Qxc3 {[%clk 0:01:52.2]} 0-1

[Event "Late-Titled-Tuesday-Blitz-January-23-2024"]
[Site "Chess.com"]
[Date "2024.01.23"]
[Round "1"]
[White "ybothg"]
[Black "iturrizaga"]
[Result "0-1"]
[WhiteElo "2524"]
[BlackElo "3028"]
[TimeControl "180+1"]
[EndTime "14:04:50 PST"]
[Termination "iturrizaga won by resignation"]

1. d4 {[%clk 0:03:00.9]} 1... Nf6 {[%clk 0:03:00.2]} 2. Bg5 {[%clk 0:03:00.7]}
2... d5 {[%clk 0:02:56.3]} 3. Bxf6 {[%clk 0:02:58.9]} 3... exf6 {[%clk
0:02:56.4]} 4. e3 {[%clk 0:02:57.4]} 4... Bd6 {[%clk 0:02:56.6]} 5. Bd3 {[%clk
0:02:46.2]} 5... O-O {[%clk 0:02:56.3]} 6. Ne2 {[%clk 0:02:46.3]} 6... c6 {[%clk
0:02:55.8]} 7. O-O {[%clk 0:02:46]} 7... Re8 {[%clk 0:02:56.4]} 8. c4 {[%clk
0:02:46.3]} 8... dxc4 {[%clk 0:02:56.9]} 9. Bxc4 {[%clk 0:02:46.3]} 9... Nd7
{[%clk 0:02:57.8]} 10. Nbc3 {[%clk 0:02:46.4]} 10... f5 {[%clk 0:02:47.1]} 11.
Bd3 {[%clk 0:01:59.2]} 11... Nf6 {[%clk 0:02:46.9]} 12. Qc2 {[%clk 0:01:59.1]}
12... g6 {[%clk 0:02:47]} 13. h3 {[%clk 0:01:54.1]} 13... Kg7 {[%clk 0:02:45.7]}
14. a3 {[%clk 0:01:52.2]} 14... Qe7 {[%clk 0:02:33.4]} 15. b4 {[%clk 0:01:51.8]}
15... a5 {[%clk 0:02:31.8]} 16. b5 {[%clk 0:01:44.9]} 16... c5 {[%clk
0:02:30.1]} 17. dxc5 {[%clk 0:01:34.5]} 17... Bxc5 {[%clk 0:02:31]} 18. Nf4
{[%clk 0:01:26.9]} 18... Bd6 {[%clk 0:02:25.2]} 19. Ncd5 {[%clk 0:01:24.2]}
19... Nxd5 {[%clk 0:02:25.3]} 20. Nxd5 {[%clk 0:01:24.5]} 20... Qe5 {[%clk
0:02:26]} 21. Nf4 {[%clk 0:01:09.3]} 21... Bd7 {[%clk 0:01:46.4]} 22. Rfc1
{[%clk 0:01:08.8]} 22... Rac8 {[%clk 0:01:45.6]} 23. Qe2 {[%clk 0:01:09.1]}
23... Rxc1+ {[%clk 0:01:43.8]} 24. Rxc1 {[%clk 0:01:10]} 24... Bxa3 {[%clk
0:01:44.2]} 25. Rc2 {[%clk 0:01:00.6]} 25... Bd6 {[%clk 0:01:42.8]} 26. Bc4
{[%clk 0:00:57.4]} 26... Qa1+ {[%clk 0:01:40.1]} 27. Qf1 {[%clk 0:00:50.7]}
27... Qxf1+ {[%clk 0:01:40.1]} 28. Kxf1 {[%clk 0:00:49.3]} 28... Bxf4 {[%clk
0:01:36]} 29. exf4 {[%clk 0:00:50.2]} 29... Rc8 {[%clk 0:01:36]} 30. Ke1 {[%clk
0:00:48.6]} 0-1

[Event "Late-Titled-Tuesday-Blitz-January-23-2024"]
[Site "Chess.com"]
[Date "2024.01.23"]
[Round "1"]
[White "semchik73"]
[Black "Cubitas"]
[Result "0-1"]
[WhiteElo "2409"]
[BlackElo "2729"]
[TimeControl "180+1"]
[EndTime "14:04:52 PST"]
[Termination "Cubitas won by resignation"]

1. Nf3 {[%clk 0:03:00.3]} 1... c5 {[%clk 0:03:00.4]} 2. c4 {[%clk 0:03:00.3]}
2... Nf6 {[%clk 0:03:00.5]} 3. e3 {[%clk 0:03:00.9]} 3... g6 {[%clk 0:03:00.9]}
4. d4 {[%clk 0:03:01.5]} 4... cxd4 {[%clk 0:03:01.6]} 5. exd4 {[%clk 0:03:02]}
5... Bg7 {[%clk 0:03:01.7]} 6. Nc3 {[%clk 0:03:02.2]} 6... O-O {[%clk
0:03:01.9]} 7. Be2 {[%clk 0:03:02.1]} 7... d5 {[%clk 0:03:02.4]} 8. c5 {[%clk
0:03:02]} 8... b6 {[%clk 0:03:00.5]} 9. cxb6 {[%clk 0:03:02]} 9... Qxb6 {[%clk
0:02:59.3]} 10. O-O {[%clk 0:03:01.9]} 10... Ba6 {[%clk 0:02:59.9]} 11. Na4
{[%clk 0:02:57.3]} 11... Qd6 {[%clk 0:02:56.2]} 12. Nc5 {[%clk 0:02:53.3]} 12...
Bxe2 {[%clk 0:02:54.2]} 13. Qxe2 {[%clk 0:02:53.3]} 13... Nbd7 {[%clk 0:02:54]}
14. b4 {[%clk 0:02:43.2]} 14... a5 {[%clk 0:02:37.2]} 15. Bd2 {[%clk 0:02:42]}
15... Ne4 {[%clk 0:02:31.3]} 16. Nxe4 {[%clk 0:02:34.6]} 16... dxe4 {[%clk
0:02:32.2]} 17. Qxe4 {[%clk 0:02:34.7]} 17... axb4 {[%clk 0:02:32.4]} 18. Bf4
{[%clk 0:02:28.8]} 18... Qe6 {[%clk 0:02:20.9]} 19. Qxe6 {[%clk 0:02:24]} 19...
fxe6 {[%clk 0:02:21.8]} 20. Be3 {[%clk 0:02:20.8]} 20... Nb6 {[%clk 0:02:17.9]}
21. Ng5 {[%clk 0:02:16.9]} 21... Nd5 {[%clk 0:01:57.6]} 22. Nxe6 {[%clk
0:02:16.4]} 22... Rfc8 {[%clk 0:01:57.9]} 23. Nc5 {[%clk 0:02:03.2]} 23... Rxc5
{[%clk 0:01:57.3]} 24. dxc5 {[%clk 0:02:03.2]} 24... Bxa1 {[%clk 0:01:57]} 25.
Rxa1 {[%clk 0:02:02.8]} 25... b3 {[%clk 0:01:55.3]} 26. a3 {[%clk 0:01:53.1]}
26... Nc3 {[%clk 0:01:45.1]} 27. Bc1 {[%clk 0:01:44.1]} 27... Rc8 {[%clk
0:01:41.3]} 28. Bb2 {[%clk 0:01:40.9]} 28... Na4 {[%clk 0:01:37.4]} 29. Bd4
{[%clk 0:01:39.5]} 29... e5 {[%clk 0:01:37.7]} 30. Be3 {[%clk 0:01:33.6]} 30...
b2 {[%clk 0:01:33]} 31. Rb1 {[%clk 0:01:31]} 31... Rd8 {[%clk 0:01:33.5]} 32.
Kf1 {[%clk 0:01:26.3]} 32... Nc3 {[%clk 0:01:33.1]} 33. c6 {[%clk 0:01:13.2]}
33... Nxb1 {[%clk 0:01:30.1]} 34. c7 {[%clk 0:01:13]} 34... Rc8 {[%clk
0:01:26.1]} 0-1

[Event "Late-Titled-Tuesday-Blitz-January-23-2024"]
[Site "Chess.com"]
[Date "2024.01.23"]
[Round "1"]
[White "RantomOpening"]
[Black "FairChess_on_YouTube"]
[Result "0-1"]
[WhiteElo "2534"]
[BlackElo "3084"]
[TimeControl "180+1"]
[EndTime "14:04:58 PST"]
[Termination "FairChess_on_YouTube won by checkmate"]

1. e4 {[%clk 0:02:58.8]} 1... c5 {[%clk 0:02:59.1]} 2. c3 {[%clk 0:02:57.7]}
2... d5 {[%clk 0:02:56.6]} 3. exd5 {[%clk 0:02:58.6]} 3... Qxd5 {[%clk 0:02:57]}
4. Nf3 {[%clk 0:02:59.1]} 4... Nf6 {[%clk 0:02:57.4]} 5. Na3 {[%clk 0:02:58.2]}
5... e6 {[%clk 0:02:57]} 6. Be2 {[%clk 0:02:54.4]} 6... Be7 {[%clk 0:02:56.3]}
7. Nc2 {[%clk 0:02:54.7]} 7... O-O {[%clk 0:02:56]} 8. O-O {[%clk 0:02:54.5]}
8... b6 {[%clk 0:02:55.6]} 9. d4 {[%clk 0:02:54.8]} 9... Bb7 {[%clk 0:02:55.6]}
10. dxc5 {[%clk 0:02:53]} 10... Qxc5 {[%clk 0:02:55]} 11. Be3 {[%clk 0:02:52.9]}
11... Qc7 {[%clk 0:02:54.7]} 12. Ncd4 {[%clk 0:02:51.9]} 12... Nd5 {[%clk
0:02:51.7]} 13. Bg5 {[%clk 0:02:43.7]} 13... Nc6 {[%clk 0:02:48.5]} 14. Bxe7
{[%clk 0:02:37.9]} 14... Ncxe7 {[%clk 0:02:46.8]} 15. Qb3 {[%clk 0:01:59]} 15...
Rad8 {[%clk 0:02:45.1]} 16. Qa4 {[%clk 0:01:51.7]} 16... Nf4 {[%clk 0:02:43.9]}
17. Ba6 {[%clk 0:01:51.2]} 17... Rxd4 {[%clk 0:02:39.8]} 18. cxd4 {[%clk
0:01:35.1]} 18... Bxf3 {[%clk 0:02:38.1]} 19. gxf3 {[%clk 0:01:36]} 19... Nf5
{[%clk 0:02:36.1]} 20. d5 {[%clk 0:01:18.1]} 20... Nh4 {[%clk 0:02:32]} 21. Rac1
{[%clk 0:00:55.7]} 21... Qe5 {[%clk 0:02:27.6]} 22. Kh1 {[%clk 0:00:53.1]} 22...
exd5 {[%clk 0:02:26.5]} 23. Rce1 {[%clk 0:00:50.4]} 23... Qf5 {[%clk 0:02:19]}
24. Qa3 {[%clk 0:00:25.9]} 24... Qh3 {[%clk 0:02:13.1]} 25. Rg1 {[%clk
0:00:04.9]} 25... Nxf3 {[%clk 0:02:13]} 26. Bb5 {[%clk 0:00:02.5]} 26... Qxh2#
{[%clk 0:02:12.5]} 0-1

[Event "Late-Titled-Tuesday-Blitz-January-23-2024"]
[Site "Chess.com"]
[Date "2024.01.23"]
[Round "1"]
[White "Rdeux42"]
[Black "Vladimir_Zakhartsov"]
[Result "0-1"]
[WhiteElo "2459"]
[BlackElo "2852"]
[TimeControl "180+1"]
[EndTime "14:05:07 PST"]
[Termination "Vladimir_Zakhartsov won by resignation"]

1. d4 {[%clk 0:02:34.9]} 1... Nf6 {[%clk 0:02:59.3]} 2. Nf3 {[%clk 0:02:17.5]}
2... d5 {[%clk 0:02:56.6]} 3. e3 {[%clk 0:02:16.6]} 3... c5 {[%clk 0:02:56.2]}
4. c4 {[%clk 0:02:16]} 4... cxd4 {[%clk 0:02:54.9]} 5. Nxd4 {[%clk 0:02:12.8]}
5... e5 {[%clk 0:02:51.4]} 6. Nf3 {[%clk 0:02:12]} 6... e4 {[%clk 0:02:50.4]} 7.
Nd4 {[%clk 0:02:11.3]} 7... dxc4 {[%clk 0:02:42.1]} 8. Bxc4 {[%clk 0:02:08.4]}
8... Bd6 {[%clk 0:02:42.2]} 9. Nb5 {[%clk 0:01:52.6]} 9... Bb4+ {[%clk
0:02:39.3]} 10. Bd2 {[%clk 0:01:52]} 10... Be7 {[%clk 0:02:30.5]} 11. Bc3 {[%clk
0:01:25.2]} 11... Qxd1+ {[%clk 0:02:08.1]} 12. Kxd1 {[%clk 0:01:26.1]} 12... Na6
{[%clk 0:02:08.7]} 13. Nd2 {[%clk 0:01:12.4]} 13... O-O {[%clk 0:02:05.5]} 14.
a3 {[%clk 0:01:11]} 14... Nc5 {[%clk 0:01:51.9]} 15. b4 {[%clk 0:01:09]} 15...
Nd3 {[%clk 0:01:49.4]} 16. Bxd3 {[%clk 0:01:03]} 16... exd3 {[%clk 0:01:50.3]}
17. f3 {[%clk 0:00:58.8]} 17... Bd7 {[%clk 0:01:44.4]} 18. Nd4 {[%clk
0:00:58.2]} 18... Nd5 {[%clk 0:01:44.5]} 19. Bb2 {[%clk 0:00:35.4]} 19... Nxe3+
{[%clk 0:01:42.4]} 20. Ke1 {[%clk 0:00:36]} 20... Bf6 {[%clk 0:01:42.4]} 21. Kf2
{[%clk 0:00:33.7]} 21... Nc2 {[%clk 0:01:31]} 22. Rac1 {[%clk 0:00:30.9]} 22...
Bxd4+ {[%clk 0:01:24.8]} 0-1

[Event "Late-Titled-Tuesday-Blitz-January-23-2024"]
[Site "Chess.com"]
[Date "2024.01.23"]
[Round "1"]
[White "VitaliyChayka"]
[Black "FrenchHarvey"]
[Result "0-1"]
[WhiteElo "2443"]
[BlackElo "2792"]
[TimeControl "180+1"]
[EndTime "14:05:09 PST"]
[Termination "FrenchHarvey won by resignation"]

1. d4 {[%clk 0:02:53.8]} 1... Nf6 {[%clk 0:02:59.5]} 2. Bf4 {[%clk 0:02:52.6]}
2... d6 {[%clk 0:02:58.8]} 3. e3 {[%clk 0:02:51.9]} 3... g6 {[%clk 0:02:56.3]}
4. h3 {[%clk 0:02:50.4]} 4... Bg7 {[%clk 0:02:56.2]} 5. Nf3 {[%clk 0:02:49.4]}
5... O-O {[%clk 0:02:56.6]} 6. Be2 {[%clk 0:02:43.5]} 6... c5 {[%clk 0:02:56.7]}
7. c3 {[%clk 0:02:41.6]} 7... Qb6 {[%clk 0:02:56.2]} 8. Qc1 {[%clk 0:02:26]}
8... Nc6 {[%clk 0:02:52.6]} 9. Nbd2 {[%clk 0:02:23.2]} 9... Be6 {[%clk
0:02:52.6]} 10. O-O {[%clk 0:02:21.6]} 10... Rac8 {[%clk 0:02:48.2]} 11. dxc5
{[%clk 0:02:16.2]} 11... Qxc5 {[%clk 0:02:48]} 12. Nb3 {[%clk 0:02:11.7]} 12...
Qb6 {[%clk 0:02:47.9]} 13. Nbd4 {[%clk 0:02:10.1]} 13... Bd7 {[%clk 0:02:48.1]}
14. Nxc6 {[%clk 0:02:06.7]} 14... Bxc6 {[%clk 0:02:47.8]} 15. Nd4 {[%clk
0:02:06.8]} 15... Bd7 {[%clk 0:02:47.7]} 16. Bh2 {[%clk 0:02:04.1]} 16... Ne4
{[%clk 0:02:44.1]} 17. Rb1 {[%clk 0:01:50.5]} 17... Rfe8 {[%clk 0:02:34]} 18.
Qd1 {[%clk 0:01:50.3]} 18... e5 {[%clk 0:02:32.7]} 19. Nf3 {[%clk 0:01:46.2]}
19... Bf5 {[%clk 0:02:31.3]} 20. Bd3 {[%clk 0:01:41.5]} 20... d5 {[%clk
0:02:31.2]} 21. Nh4 {[%clk 0:01:39.9]} 21... Be6 {[%clk 0:02:29.1]} 22. Nf3
{[%clk 0:01:35.9]} 22... Nxf2 {[%clk 0:02:26.7]} 23. Rxf2 {[%clk 0:01:30]} 23...
e4 {[%clk 0:02:27.1]} 24. Nd4 {[%clk 0:01:27.4]} 24... exd3 {[%clk 0:02:26.6]}
25. Qxd3 {[%clk 0:01:28.3]} 25... Bxd4 {[%clk 0:02:14.3]} 26. exd4 {[%clk
0:01:26.2]} 26... Bf5 {[%clk 0:02:14.4]} 27. Rxf5 {[%clk 0:01:25.8]} 27... gxf5
{[%clk 0:02:15.3]} 28. Qxf5 {[%clk 0:01:25.9]} 28... Qg6 {[%clk 0:02:15.3]} 29.
Qxg6+ {[%clk 0:01:20]} 29... hxg6 {[%clk 0:02:14.9]} 30. Be5 {[%clk 0:01:18.4]}
30... Re6 {[%clk 0:02:12.9]} 31. Rf1 {[%clk 0:01:18.2]} 31... Rcc6 {[%clk
0:02:13.3]} 32. g4 {[%clk 0:01:13.9]} 32... f6 {[%clk 0:02:13.3]} 33. Bg3 {[%clk
0:01:13.4]} 33... Re2 {[%clk 0:02:13.1]} 34. Rf2 {[%clk 0:01:11.5]} 34... Rxf2
{[%clk 0:02:10]} 35. Kxf2 {[%clk 0:01:12.4]} 35... Rb6 {[%clk 0:02:06.3]} 36. b3
{[%clk 0:01:03.9]} 36... Ra6 {[%clk 0:02:06]} 37. a4 {[%clk 0:01:02.8]} 37...
Rb6 {[%clk 0:02:06.1]} 38. b4 {[%clk 0:01:02.5]} 38... Rc6 {[%clk 0:02:06.2]}
39. Bf4 {[%clk 0:00:32.6]} 39... Rxc3 {[%clk 0:02:04.9]} 40. Be3 {[%clk
0:00:32.8]} 40... Rc4 {[%clk 0:02:04.7]} 0-1

[Event "Late-Titled-Tuesday-Blitz-January-23-2024"]
[Site "Chess.com"]
[Date "2024.01.23"]
[Round "1"]
[White "yobdc"]
[Black "MITerryble"]
[Result "0-1"]
[WhiteElo "2523"]
[BlackElo "3020"]
[TimeControl "180+1"]
[EndTime "14:05:15 PST"]
[Termination "MITerryble won by resignation"]

1. c4 {[%clk 0:02:58.4]} 1... e5 {[%clk 0:02:59.4]} 2. Nc3 {[%clk 0:02:58.1]}
2... Nc6 {[%clk 0:02:59.8]} 3. g3 {[%clk 0:02:57.9]} 3... g6 {[%clk 0:03:00.2]}
4. Bg2 {[%clk 0:02:58.2]} 4... Bg7 {[%clk 0:03:00.3]} 5. Nf3 {[%clk 0:02:58.4]}
5... d6 {[%clk 0:03:00.6]} 6. O-O {[%clk 0:02:58.3]} 6... f5 {[%clk 0:03:00.7]}
7. d3 {[%clk 0:02:58.3]} 7... Nge7 {[%clk 0:03:00.5]} 8. Rb1 {[%clk 0:02:53.6]}
8... h6 {[%clk 0:03:00.8]} 9. Bd2 {[%clk 0:02:53.2]} 9... Be6 {[%clk 0:03:00.7]}
10. b4 {[%clk 0:02:53.1]} 10... Qd7 {[%clk 0:03:01.1]} 11. b5 {[%clk 0:02:53.4]}
11... Nd8 {[%clk 0:03:01.2]} 12. Ne1 {[%clk 0:02:20.7]} 12... g5 {[%clk
0:02:59.7]} 13. Nd5 {[%clk 0:02:20.2]} 13... O-O {[%clk 0:02:58.1]} 14. Nc2
{[%clk 0:02:17.6]} 14... Ng6 {[%clk 0:02:58.4]} 15. e3 {[%clk 0:02:14.2]} 15...
c6 {[%clk 0:02:52.1]} 16. bxc6 {[%clk 0:02:13.7]} 16... bxc6 {[%clk 0:02:53]}
17. Nc3 {[%clk 0:02:12.1]} 17... Rc8 {[%clk 0:02:52]} 18. Ne2 {[%clk 0:01:40.8]}
18... f4 {[%clk 0:02:44]} 19. exf4 {[%clk 0:01:40.8]} 19... gxf4 {[%clk
0:02:41.4]} 20. Be4 {[%clk 0:01:38.5]} 20... Bf5 {[%clk 0:02:41.6]} 21. f3
{[%clk 0:01:36]} 21... Bxe4 {[%clk 0:02:38.2]} 22. dxe4 {[%clk 0:01:35.8]} 22...
Qh3 {[%clk 0:02:35.7]} 23. Be1 {[%clk 0:01:28.8]} 23... Nf7 {[%clk 0:02:29.9]}
24. c5 {[%clk 0:01:28.1]} 24... Rfd8 {[%clk 0:02:25.6]} 25. Qd3 {[%clk
0:01:24.4]} 25... dxc5 {[%clk 0:02:09.3]} 26. Qc4 {[%clk 0:01:23.9]} 26... Rd7
{[%clk 0:02:09.1]} 27. Bf2 {[%clk 0:01:09.5]} 27... Kh7 {[%clk 0:02:07.6]} 28.
Rbd1 {[%clk 0:01:06.6]} 28... Ng5 {[%clk 0:02:03.5]} 29. Qc3 {[%clk 0:01:01.6]}
29... Nh4 {[%clk 0:01:56.3]} 30. gxh4 {[%clk 0:00:51.1]} 30... Nxf3+ {[%clk
0:01:56.1]} 31. Qxf3 {[%clk 0:00:49.7]} 31... Qxf3 {[%clk 0:01:57]} 32. Rxd7
{[%clk 0:00:49.9]} 32... Qg4+ {[%clk 0:01:57.5]} 33. Kh1 {[%clk 0:00:49.2]}
33... Qxd7 {[%clk 0:01:58.4]} 34. Ne1 {[%clk 0:00:37]} 34... Qd2 {[%clk
0:01:49.7]} 35. Ng1 {[%clk 0:00:35.1]} 35... Qxa2 {[%clk 0:01:48]} 36. Nef3
{[%clk 0:00:35.1]} 36... c4 {[%clk 0:01:46.2]} 0-1